bitfinex-derivatives/quotes_ETHF0:USTF0_20250701
["timestamp","ask_amount","ask_price","bid_price","bid_amount"]
[1751379341107,0.81554,2451.6,2451.5,0.81551]
[1751379341307,0.93,2452.0,2451.5,7.35262322]
[1751379341508,2.0382,2452.3,2451.8,6.9483654]
[1751379341810,0.81538,2452.0,2451.9,1.75741]
[1751379342317,0.81538,2452.0,2451.9,0.942]
[1751379343610,0.81538,2452.0,2451.9,1.75741]
[1751379343811,0.81538,2452.0,2451.9,0.942]
[1751379346117,0.81538,2452.0,2451.9,1.75741]
[1751379346315,0.81538,2452.0,2451.9,0.942]
[1751379346912,0.81538,2452.0,2451.9,1.75741]
[1751379347107,0.81538,2452.0,2451.9,0.942]
[1751379347313,0.81538,2452.0,2451.9,1.75741]
[1751379347521,0.81538,2452.0,2451.9,0.942]
[1751379348415,0.81544,2451.8,2451.7,1.21327979]
[1751379348621,0.81544,2451.8,2451.7,2.02875979]
[1751379348814,0.81544,2451.9,2451.8,0.81538]
[1751379349018,0.81533,2452.2,2452.1,0.81529]
[1751379349316,3.25010958,2452.9,2452.0,1.21327979]
[1751379349515,0.81522,2452.6,2452.5,0.81519]
[1751379349714,4.17420958,2452.9,2452.4,0.9696]
[1751379349915,2.03759,2453.1,2453.0,0.81502]
[1751379349916,0.81503,2453.1,2453.0,0.81502]
[1751379350317,0.81499,2453.2,2452.8,2.03778]
[1751379350620,4.15270958,2453.3,2453.2,0.81498]
[1751379350918,0.81496,2453.3,2453.2,0.81496]
[1751379351217,0.81496,2453.3,2453.2,0.81497]
[1751379351422,0.81499,2453.2,2453.1,0.81499]
[1751379351719,3.25010958,2453.4,2453.1,0.81499]
[1751379351920,0.81499,2453.2,2453.1,0.81499]
[1751379352116,3.25010958,2453.4,2452.9,1.8453]
[1751379352323,3.25010958,2453.6,2453.2,2.03745]
[1751379352518,3.25010958,2453.7,2453.6,0.81484]
[1751379352820,3.25010958,2453.7,2453.5,3.14445]
[1751379353125,3.25010958,2453.7,2453.6,0.81484]
[1751379353419,4.06491958,2453.7,2453.6,1.3701]
[1751379353624,4.06491958,2453.7,2453.5,0.9595]
[1751379353625,0.81484,2453.6,2453.5,0.9595]
[1751379354025,0.81484,2453.6,2453.5,1.77438]
[1751379354222,10.73508561,2453.6,2452.5,1.21327979]
[1751379354522,0.81495,2453.3,2453.1,0.815]
[1751379354719,0.81486,2453.6,2453.4,0.81491]
[1751379354920,5.28692958,2454.0,2453.3,0.9056]
[1751379354921,0.81491,2453.4,2453.3,0.9056]
[1751379355118,0.81491,2453.4,2453.3,2.2728]
[1751379355514,0.81491,2453.4,2453.3,0.9056]
[1751379355718,0.81491,2453.4,2453.2,0.9167]
[1751379355719,0.81494,2453.3,2453.2,0.9167]
[1751379356428,0.81504,2453.0,2452.9,1.3672]
[1751379356729,0.81503,2453.1,2452.9,0.9035]
[1751379357023,0.81504,2453.0,2452.9,3.08575]
[1751379357222,0.81504,2453.0,2452.9,3.48397979]
[1751379357425,0.81504,2453.0,2452.9,3.08578]
[1751379358419,0.81504,2453.0,2452.9,4.70331761]
[1751379358821,0.81504,2453.0,2452.9,3.88823761]
[1751379359024,0.81504,2453.0,2452.9,3.47665948]
[1751379359226,0.81504,2453.0,2452.9,4.29173948]
[1751379359422,0.81503,2453.1,2453.0,0.81504]
[1751379359627,7.77228561,2453.5,2453.0,0.81502]
[1751379359818,0.815,2453.2,2453.0,1.3536]
[1751379360021,0.81501,2453.1,2453.0,2.16863]
[1751379360220,3.49,2453.5,2453.0,1.3536]
[1751379360428,0.81499,2453.2,2453.1,0.815]
[1751379360727,0.81497,2453.3,2453.2,0.81498]
[1751379361025,1.8717,2453.7,2453.4,0.8149]
[1751379361026,0.8149,2453.5,2453.4,0.8149]
[1751379361223,0.81486,2453.6,2453.4,0.8149]
[1751379361439,0.9046,2453.7,2453.3,0.81494]
[1751379361440,0.81489,2453.5,2453.3,0.81494]
[1751379361623,0.9046,2453.7,2453.2,2.13617]
[1751379361624,2.03712,2453.6,2453.2,2.13617]
[1751379361923,0.81494,2453.3,2453.2,0.81497]
[1751379362126,3.1352,2453.7,2453.3,0.81493]
[1751379362127,0.81493,2453.4,2453.3,0.81493]
[1751379362326,0.81491,2453.5,2453.4,0.8149]
[1751379362523,0.81484,2453.6,2453.5,0.81486]
[1751379363124,0.81486,2453.6,2453.4,0.81489]
[1751379363327,0.81488,2453.5,2453.3,0.81491]
[1751379363628,1.71943,2453.7,2453.2,2.03745]
[1751379363822,0.81485,2453.6,2453.3,1.3794]
[1751379364024,1.71944,2453.7,2453.6,0.81484]
[1751379364223,0.9046,2453.7,2453.6,0.81484]
[1751379364427,1.71941,2453.7,2453.6,0.81484]
[1751379364726,0.9128,2454.2,2453.5,2.03719]
[1751379364929,0.6876,2454.1,2453.6,2.03712]
[1751379365129,0.81473,2454.0,2453.9,0.81472]
[1751379365723,2.8785,2454.1,2454.0,0.81471]
[1751379366027,2.8785,2454.1,2453.9,0.81473]
[1751379366028,0.81473,2454.0,2453.9,0.81473]
[1751379366417,2.8785,2454.1,2454.0,0.81471]
[1751379366729,0.6876,2454.1,2454.0,0.81471]
[1751379367119,0.43910224,2454.7,2454.4,0.81457]
[1751379367431,0.81461,2454.4,2454.3,0.8146]
[1751379367634,2.03639,2454.5,2453.9,1.3446]
[1751379367829,7.77137561,2454.6,2454.0,2.03677]
[1751379367830,1.3543,2454.4,2454.0,2.03677]
[1751379368125,0.81458,2454.5,2454.4,0.81456]
[1751379368522,0.81463,2454.3,2454.2,0.81461]
[1751379368928,0.8146,2454.4,2454.3,0.8146]
[1751379369124,0.81463,2454.3,2454.2,0.81461]
[1751379369325,0.81453,2454.6,2454.5,0.81451]
[1751379369533,1.3543,2454.7,2454.6,0.81451]
[1751379369725,0.81444,2454.9,2454.8,0.81443]
[1751379369921,0.674,2455.1,2454.5,5.73508561]
[1751379370227,0.81442,2455.0,2454.9,0.81439]
[1751379370619,0.81444,2454.9,2454.8,0.81442]
[1751379371025,0.8144,2455.0,2454.9,0.81439]
[1751379371322,0.81444,2454.9,2454.8,0.81442]
[1751379371930,0.674,2455.1,2454.5,2.03636]
[1751379371931,0.81453,2454.6,2454.5,0.81452]
[1751379372129,2.03596,2455.0,2454.6,0.81448]
[1751379372130,0.8145,2454.7,2454.6,0.81448]
[1751379372527,1.42,2455.0,2454.6,2.03629]
[1751379372727,0.81442,2455.0,2454.9,0.81441]
[1751379372923,0.81445,2454.8,2454.7,0.81445]
[1751379373329,2.03613,2454.8,2454.3,2.1052]
[1751379373525,5.73508561,2454.9,2454.5,0.81452]
[1751379373526,0.81454,2454.6,2454.5,0.81452]
[1751379373727,0.81462,2454.4,2454.3,0.8146]
[1751379373923,0.81462,2454.4,2454.1,1.3861]
[1751379373924,0.81456,2454.5,2454.4,0.81455]
[1751379374232,8.44496561,2455.1,2454.4,2.03643]
[1751379374433,0.81447,2454.8,2454.7,0.81446]
[1751379374634,0.81449,2454.7,2454.6,0.81449]
[1751379374830,1.4374,2455.0,2454.4,2.03645]
[1751379375134,0.81442,2454.9,2454.4,3.42255]
[1751379375333,1.4374,2455.0,2454.8,0.81443]
[1751379375534,0.81441,2454.9,2454.8,0.81443]
[1751379375730,0.81448,2454.8,2454.7,0.81446]
[1751379375939,0.81451,2454.7,2454.6,0.8145]
[1751379376236,0.81454,2454.6,2454.5,0.81453]
[1751379376436,0.81456,2454.5,2454.4,0.81455]
[1751379376729,5.73508561,2454.7,2454.2,0.6859]
[1751379376936,0.81461,2454.3,2454.2,0.6859]
[1751379377134,1.4333,2454.6,2453.8,11.833]
[1751379377135,0.81471,2454.1,2453.8,11.833]
[1751379377335,0.81471,2454.0,2453.8,12.4899]
[1751379377530,7.77158561,2454.4,2454.0,0.8147]
[1751379377531,1.4333,2454.3,2454.0,0.8147]
[1751379377835,0.81469,2454.1,2454.0,0.81469]
[1751379378036,0.81469,2454.1,2453.8,12.4899]
[1751379378037,1.4333,2454.3,2453.8,14.52685]
[1751379378336,0.81466,2454.2,2454.1,0.81465]
[1751379378535,0.8147,2454.1,2454.0,0.81469]
[1751379379034,0.81473,2454.0,2453.9,0.81472]
[1751379379435,0.8147,2454.1,2454.0,0.81469]
[1751379379738,0.81468,2454.2,2454.0,0.81469]
[1751379379934,0.81464,2454.2,2453.8,2.69383]
[1751379380132,1.4333,2454.3,2453.9,2.03687]
[1751379380328,2.24792,2454.3,2454.2,0.81464]
[1751379380533,0.6906,2454.5,2454.4,0.81458]
[1751379380738,13.9918,2454.9,2454.4,2.03645]
[1751379380941,0.7086,2454.8,2454.7,0.81446]
[1751379381839,1.52305,2454.8,2454.7,0.81446]
[1751379382435,0.8145,2454.7,2454.6,0.81449]
[1751379382835,1.52307,2454.8,2454.7,0.81448]
[1751379383341,0.8145,2454.7,2454.6,0.81449]
[1751379383640,1.52307,2454.8,2454.7,0.81448]
[1751379383840,1.52305,2454.8,2454.7,0.81448]
[1751379384041,0.7086,2454.8,2454.7,0.81448]
[1751379384341,0.81439,2455.0,2454.9,0.81441]
[1751379384741,0.81443,2454.9,2454.8,0.81442]
[1751379385035,2.03521,2456.0,2454.6,5.73508561]
[1751379385232,0.81417,2455.7,2455.5,0.81419]
[1751379385636,0.81418,2455.6,2455.5,0.81419]
[1751379385836,2.79068882,2455.6,2455.4,0.81422]
[1751379386243,1.97650882,2455.6,2455.5,0.81421]
[1751379386437,1.97650882,2455.6,2455.5,6.54929561]
[1751379386639,3.25010958,2456.4,2455.5,5.0]
[1751379386938,3.25010958,2456.3,2455.8,5.73508561]
[1751379387141,0.81393,2456.4,2456.3,0.81395]
[1751379387340,4.06400958,2456.5,2455.9,4.13507]
[1751379387641,4.06400958,2456.5,2456.3,0.81392]
[1751379387939,4.06400958,2456.5,2455.9,2.91396]
[1751379387940,0.81403,2456.1,2455.9,2.91396]
[1751379388140,3.25010958,2456.4,2456.1,0.81399]
[1751379388141,0.81395,2456.3,2456.1,0.81399]
[1751379388342,2.0348,2456.4,2455.9,0.6956]
[1751379388538,2.03466,2456.6,2456.0,0.81405]
[1751379388732,0.81404,2456.1,2455.9,1.50966]
[1751379388938,2.03471,2456.5,2455.9,0.6956]
[1751379389142,0.81403,2456.1,2455.9,0.6956]
[1751379389440,0.81405,2456.0,2455.9,0.6956]
[1751379390238,7.16538561,2456.4,2455.5,1.20595948]
[1751379390440,0.81416,2455.7,2455.6,0.81418]
[1751379390634,0.81414,2455.8,2455.4,0.7167]
[1751379390839,0.6938,2456.3,2455.5,7.11428561]
[1751379390840,0.8141,2455.9,2455.5,7.11428561]
[1751379391037,0.81403,2456.1,2455.9,0.81406]
[1751379391247,2.03469,2456.6,2456.0,2.0959]
[1751379391435,0.02043056,2457.1,2456.6,0.81385]
[1751379391641,0.81363,2457.3,2457.1,0.81367]
[1751379391837,2.034,2457.4,2456.7,1.49389]
[1751379392149,0.81375,2456.9,2456.8,1.3792]
[1751379392639,0.81389,2456.5,2456.3,17.55508561]
[1751379392942,0.81395,2456.3,2456.2,2.0804]
[1751379393138,2.03392,2457.5,2456.2,3.67640139]
[1751379393344,5.73508561,2457.0,2456.2,3.27752079]
[1751379393544,0.81395,2456.3,2456.2,3.27752079]
[1751379393745,0.81395,2456.3,2456.2,1.19712079]
[1751379394043,0.81395,2456.3,2455.9,2.42111454]
[1751379394044,0.81401,2456.1,2456.0,1.19712079]
[1751379394248,0.81405,2456.0,2455.9,1.19712079]
[1751379394543,0.81408,2455.9,2455.8,1.4183]
[1751379395248,0.81415,2455.7,2455.6,0.6995]
[1751379396444,0.81425,2455.4,2455.3,1.19712079]
[1751379396644,0.81428,2455.3,2455.2,2.71812079]
[1751379396841,0.81428,2455.3,2455.2,3.25872079]
[1751379397338,0.81428,2455.3,2455.2,2.0616]
[1751379397541,0.81428,2455.3,2455.2,0.7067]
[1751379397944,0.81438,2455.0,2454.9,1.19712079]
[1751379398149,0.81441,2454.9,2454.8,2.28560139]
[1751379398343,0.81441,2454.9,2454.8,0.6896]
[1751379398538,0.81441,2454.9,2454.8,2.0445]
[1751379400143,0.81451,2454.6,2454.5,0.7067]
[1751379400453,2.03604,2454.9,2454.5,0.7067]
[1751379400644,0.81458,2454.4,2454.3,0.81459]
[1751379400850,0.81461,2454.3,2454.2,1.19905738]
[1751379401148,0.81458,2454.4,2454.1,1.19905738]
[1751379401352,0.81461,2454.3,2454.2,1.3485]
[1751379402848,0.81464,2454.2,2454.1,1.19905738]
[1751379403058,0.81468,2454.1,2454.0,1.19905738]
[1751379403542,0.81471,2454.0,2453.9,3.20575738]
[1751379404153,0.81471,2454.0,2453.9,0.6961]
[1751379404850,0.81474,2453.9,2453.8,11.818]
[1751379405351,2.03663,2454.2,2453.8,11.818]
[1751379405650,0.81474,2453.9,2453.8,0.81475]
[1751379406546,0.81478,2453.8,2453.7,0.81479]
[1751379406742,0.81478,2453.8,2453.6,2.0885]
[1751379406943,0.81481,2453.7,2453.6,0.6912]
[1751379407152,0.8149,2453.5,2453.4,0.81491]
[1751379407348,2.03695,2453.8,2453.3,1.3973]
[1751379407653,2.03695,2453.8,2453.2,1.19905738]
[1751379407654,0.81494,2453.3,2453.2,1.19905738]
[1751379407854,0.81498,2453.2,2453.1,1.85925738]
[1751379408049,0.81498,2453.2,2453.1,1.19905738]
[1751379408547,0.81501,2453.1,2453.0,1.19905738]
[1751379408747,0.81501,2453.1,2452.7,3.09791454]
[1751379408748,0.81504,2453.0,2452.9,1.19905738]
[1751379408953,0.81508,2452.9,2452.8,1.19905738]
[1751379409254,0.81514,2452.7,2452.6,1.19905738]
[1751379409456,2.03767,2453.0,2452.5,1.19905738]
[1751379409457,0.81518,2452.6,2452.5,1.19905738]
[1751379409648,2.03778,2452.8,2452.4,1.19905738]
[1751379409845,0.81532,2452.2,2452.0,1.19905738]
[1751379410047,3.44281,2452.7,2452.0,2.42111454]
[1751379410350,0.81531,2452.2,2452.1,1.2005135]
[1751379410544,0.81529,2452.3,2452.1,1.2005135]
[1751379410750,0.81529,2452.3,2452.0,1.2005135]
[1751379410951,1.4049,2452.5,2451.9,1.2005135]
[1751379411157,0.81525,2452.4,2452.3,0.81527]
[1751379411350,0.81533,2452.2,2451.8,1.2005135]
[1751379411658,0.81528,2452.3,2452.2,0.8153]
[1751379412355,0.81532,2452.2,2452.1,0.81532]
[1751379412553,1.4049,2452.5,2451.7,4.12776]
[1751379412753,0.81532,2452.2,2452.1,0.81532]
[1751379412957,3.44296,2452.5,2451.7,2.0891]
[1751379413160,0.81528,2452.3,2452.2,0.8153]
[1751379413456,0.81531,2452.2,2451.7,2.0891]
[1751379413660,2.03812,2452.4,2451.7,0.6768]
[1751379413953,2.03828,2452.2,2451.7,0.81546]
[1751379414153,2.03828,2452.2,2451.4,3.47877]
[1751379414154,0.81549,2451.7,2451.4,1.4399]
[1751379414353,0.81546,2451.8,2451.3,2.039]
[1751379414558,2.0921,2452.1,2451.6,0.81548]
[1751379414559,0.81547,2451.7,2451.6,0.81548]
[1751379414859,0.81542,2451.9,2451.8,0.81542]
[1751379415151,0.81541,2452.0,2451.8,0.81542]
[1751379415359,2.19361,2452.0,2451.8,0.81543]
[1751379415548,1.3782,2452.0,2451.9,0.81541]
[1751379415756,67.21242264,2452.8,2451.6,2.03878]
[1751379415953,13.3042,2452.5,2451.6,2.03878]
[1751379416153,2.19342,2452.5,2451.8,2.03861]
[1751379416462,0.81518,2452.6,2452.4,0.81522]
[1751379416654,0.7145,2452.7,2451.8,9.24777264]
[1751379416963,0.8154,2452.0,2451.8,0.81543]
[1751379417162,0.81532,2452.2,2451.4,2.03887]
[1751379417356,0.6935,2452.6,2451.6,2.03878]
[1751379417658,0.6935,2452.6,2451.5,1.3166]
[1751379417659,0.81535,2452.1,2451.7,1.3166]
[1751379417860,0.81526,2452.4,2452.2,0.81529]
[1751379418262,2.19343,2452.5,2452.3,0.81528]
[1751379418463,1.3782,2452.5,2452.4,0.81524]
[1751379418657,1.3782,2452.5,2451.9,1.3672]
[1751379418855,0.81527,2452.4,2452.2,0.8153]
[1751379419457,0.81527,2452.4,2452.2,0.81529]
[1751379419668,1.3285,2452.5,2451.8,0.7049]
[1751379419966,2.1438,2452.3,2452.1,0.81533]
[1751379420157,1.3285,2452.3,2451.8,0.7049]
[1751379420354,0.81539,2452.0,2451.9,0.8154]
[1751379420752,0.81539,2452.0,2451.3,0.7166]
[1751379420753,0.81549,2451.7,2451.6,0.81549]
[1751379421158,0.81555,2451.5,2451.4,0.81555]
[1751379421360,0.81561,2451.3,2451.2,1.346]
[1751379421559,0.81561,2451.3,2451.2,0.53038]
[1751379422854,13.3104,2451.6,2451.3,0.8156]
[1751379423165,0.81561,2451.3,2451.2,0.53038]
[1751379423961,0.81581,2450.8,2450.3,13.97084]
[1751379424263,0.81583,2450.7,2450.4,1.3519]
[1751379424565,6.49261264,2451.1,2450.7,0.81579]
[1751379424566,0.81579,2450.8,2450.7,0.81579]
[1751379425071,2.1373,2451.0,2450.8,0.81576]
[1751379425072,0.81577,2450.9,2450.8,0.81576]
[1751379425369,0.81584,2450.7,2450.6,0.81583]
[1751379425560,2.03961,2450.6,2450.1,0.816]
[1751379425865,0.81593,2450.4,2450.2,0.81595]
[1751379426166,1.4137,2450.6,2450.3,0.81593]
[1751379426360,1.4137,2450.6,2449.9,2.04019]
[1751379426361,0.81594,2450.3,2450.2,0.81596]
[1751379426865,0.81596,2450.3,2449.8,3.23138042]
[1751379427058,1.4137,2450.6,2450.2,0.81595]
[1751379427059,0.81594,2450.4,2450.2,0.81595]
[1751379427255,0.81594,2450.3,2450.2,0.81595]
[1751379427566,1.4137,2450.6,2450.2,0.81594]
[1751379427762,0.81594,2450.3,2450.2,0.81594]
[1751379427967,0.81598,2450.2,2450.1,0.81599]
[1751379428160,0.81601,2450.1,2450.0,0.81602]
[1751379428355,1.4137,2450.6,2450.1,0.816]
[1751379428557,0.81601,2450.1,2450.0,2.00717042]
[1751379428760,0.81599,2450.2,2450.1,0.81598]
[1751379428964,0.81601,2450.1,2450.0,2.00716042]
[1751379429168,0.81607,2449.9,2449.8,1.19114042]
[1751379429369,0.81607,2449.9,2449.8,2.00725042]
[1751379429857,0.81607,2449.9,2449.8,1.19114042]
[1751379430058,0.81614,2449.7,2449.6,1.19114042]
[1751379430367,2.04019,2449.9,2449.8,0.8161]
[1751379430368,0.81611,2449.9,2449.8,0.8161]
[1751379430664,3.48391,2450.9,2449.8,2.04028]
[1751379430864,0.8159,2450.5,2450.4,0.8159]
[1751379431065,0.81583,2450.7,2450.6,0.81583]
[1751379431260,0.81582,2450.7,2450.6,0.81582]
[1751379431464,0.6615,2450.9,2450.4,2.03978]
[1751379431670,0.81579,2450.8,2450.7,0.81577]
[1751379431967,1.47726,2450.9,2450.8,0.81577]
[1751379432167,0.6615,2450.9,2450.5,1.3452]
[1751379432366,0.81579,2450.8,2450.7,0.81579]
[1751379432769,0.6615,2450.9,2450.5,1.3452]
[1751379432770,0.81584,2450.6,2450.5,0.81585]
[1751379433163,0.6615,2450.9,2450.1,1.3452]
[1751379433472,0.81594,2450.4,2450.2,0.81595]
[1751379433769,2.03969,2450.5,2449.9,0.6837]
[1751379433962,6.49261264,2450.4,2449.9,0.6837]
[1751379434160,1.3822,2450.4,2450.1,0.81599]
[1751379434370,1.3822,2450.4,2450.0,0.81603]
[1751379434565,2.03996,2450.2,2449.7,0.7109]
[1751379434764,9.91463264,2450.4,2449.5,0.81618]
[1751379434765,0.8162,2449.6,2449.5,0.81618]
[1751379435368,0.81615,2449.7,2449.6,0.81616]
[1751379435566,2.03955,2450.7,2449.5,6.49261264]
[1751379435868,0.81588,2450.5,2450.4,0.81589]
[1751379436068,0.6577,2450.9,2450.6,0.81583]
[1751379436272,0.81581,2450.7,2450.6,0.81583]
[1751379436471,0.6577,2450.9,2450.3,3.42303]
[1751379436671,0.81586,2450.6,2450.5,0.81586]
[1751379436871,0.81582,2450.7,2450.6,0.81581]
[1751379437074,0.81585,2450.6,2450.5,0.81585]
[1751379437272,0.81591,2450.4,2450.3,0.81592]
[1751379437571,0.6577,2450.9,2450.6,0.81583]
[1751379437572,0.81583,2450.7,2450.6,0.81583]
[1751379437769,2.03897,2451.4,2450.2,2.03992]
[1751379437970,0.81584,2450.7,2450.5,0.81585]
[1751379438165,2.03911,2451.2,2450.3,1.3832]
[1751379438370,0.81576,2450.9,2450.3,1.3832]
[1751379438571,0.81573,2451.0,2450.5,2.03969]
[1751379438770,0.81573,2451.0,2450.9,0.81574]
[1751379439070,0.81577,2450.9,2450.7,0.81578]
[1751379439470,0.81577,2450.9,2450.8,0.81577]
[1751379439667,2.03913,2451.2,2450.6,2.0991]
[1751379439875,0.81575,2450.9,2450.8,0.81576]
[1751379440375,11.961,2451.2,2451.0,0.8157]
[1751379440376,0.81569,2451.1,2451.0,0.8157]
[1751379440672,0.81571,2451.0,2450.9,0.81572]
[1751379440873,0.81578,2450.8,2450.7,0.8158]
[1751379441074,0.81581,2450.7,2450.6,2.0991]
[1751379441578,0.81576,2450.9,2450.8,0.81577]
[1751379441875,0.81571,2451.1,2450.9,0.81572]
[1751379442072,0.81574,2450.9,2450.8,0.81575]
[1751379442577,0.81572,2451.0,2450.9,0.81573]
[1751379442975,0.6899,2451.3,2450.6,2.0991]
[1751379443176,2.03913,2451.2,2450.7,0.81578]
[1751379443375,6.49261264,2450.9,2450.2,1.19876714]
[1751379443574,3.45164,2450.8,2450.2,1.19876714]
[1751379443769,2.03969,2450.5,2450.2,1.19876714]
[1751379444073,0.81601,2450.1,2450.0,1.19876714]
[1751379444473,0.81601,2450.1,2450.0,2.01480714]
[1751379444672,0.81601,2450.1,2450.0,1.19876714]
[1751379444882,0.816,2450.2,2449.9,1.19876714]
[1751379445074,0.816,2450.2,2450.1,0.816]
[1751379445275,0.81602,2450.1,2450.0,0.81602]
[1751379445776,0.81606,2450.0,2449.9,0.81606]
[1751379445972,8.53255264,2450.2,2449.7,1.19876714]
[1751379446174,9.95805264,2450.2,2449.6,1.85626714]
[1751379446481,0.81612,2449.8,2449.7,0.81612]
[1751379447485,0.8161,2449.9,2449.8,0.8161]
[1751379448083,0.81607,2449.9,2449.8,0.8161]
[1751379448381,2.7621,2450.5,2449.7,3.23910714]
[1751379448580,2.7621,2450.5,2450.1,0.816]
[1751379448581,0.816,2450.2,2450.1,0.816]
[1751379448779,0.7224,2450.5,2449.9,2.04017]
[1751379448981,0.816,2450.2,2450.1,0.816]
[1751379449281,0.81595,2450.3,2450.2,0.81595]
[1751379449477,0.81601,2450.1,2450.0,1.3236]
[1751379450181,0.81601,2450.1,2450.0,2.13964]
[1751379450381,0.81601,2450.1,2450.0,1.3236]
[1751379450582,0.81601,2450.1,2450.0,2.13964]
[1751379450782,0.81601,2450.1,2450.0,1.3236]
[1751379451281,0.81596,2450.3,2450.2,0.81594]
[1751379451486,0.81589,2450.5,2450.4,0.81588]
[1751379451686,0.81586,2450.6,2450.5,0.81586]
[1751379452182,0.81591,2450.4,2450.3,0.6749]
[1751379452783,3.38197,2450.9,2450.3,0.6749]
[1751379452982,0.81584,2450.7,2450.6,0.81583]
[1751379453381,0.81586,2450.6,2450.5,0.81585]
[1751379453583,0.81587,2450.5,2450.4,2.14458]
[1751379454886,0.81583,2450.7,2450.6,0.81581]
[1751379455088,0.81587,2450.6,2450.5,0.81585]
[1751379455388,0.81583,2450.7,2450.6,0.81582]
[1751379456079,1.3426,2451.0,2450.4,1.3287]
[1751379456282,0.81567,2451.2,2451.1,0.81566]
[1751379456488,0.81563,2451.3,2451.2,0.81563]
[1751379456681,0.81566,2451.2,2451.1,0.81565]
[1751379456881,0.81563,2451.3,2451.2,0.81563]
[1751379457082,0.8156,2451.4,2451.3,0.81559]
[1751379457281,0.81562,2451.3,2451.2,0.81562]
[1751379457782,0.81563,2451.3,2451.2,0.81562]
[1751379458782,0.81559,2451.4,2451.3,0.81558]
[1751379458979,1.3524,2451.7,2451.1,1.3983]
[1751379459278,0.81547,2451.8,2451.7,0.81546]
[1751379459477,0.81549,2451.7,2451.3,2.03901]
[1751379459682,0.8156,2451.4,2451.3,0.81559]
[1751379459990,0.81558,2451.4,2451.3,0.81558]
[1751379460490,0.81559,2451.4,2451.3,0.81558]
[1751379461186,0.81556,2451.5,2451.4,0.81555]
[1751379461396,1.4135,2451.8,2451.2,2.0391]
[1751379461688,0.81552,2451.6,2451.5,0.81552]
[1751379462191,7.18871264,2451.9,2450.9,1.3747]
[1751379462489,1.4481,2451.5,2451.0,2.03927]
[1751379462691,0.81567,2451.2,2451.1,0.81566]
[1751379462987,0.81563,2451.3,2451.2,0.81562]
[1751379463184,1.4481,2451.5,2451.0,1.4267]
[1751379463391,0.81566,2451.2,2451.1,0.81565]
[1751379463786,0.81571,2451.0,2450.9,3.38919714]
[1751379463986,0.81571,2451.0,2450.9,3.79111467]
[1751379464489,0.81564,2451.3,2451.2,0.81562]
[1751379464693,0.8156,2451.4,2451.3,0.81558]
[1751379465889,2.03878,2451.6,2451.1,1.21011257]
[1751379466082,0.81563,2451.3,2451.2,0.81562]
[1751379466283,0.8156,2451.4,2451.3,0.81558]
[1751379467584,3.37948,2451.6,2451.1,1.21011257]
[1751379467585,2.03886,2451.5,2451.1,1.21011257]
[1751379467787,0.81564,2451.2,2451.1,1.21011257]
[1751379467985,0.81564,2451.2,2451.1,0.81567]
[1751379468188,0.81567,2451.1,2451.0,2.02579257]
[1751379468582,0.81567,2451.1,2451.0,0.81568]
[1751379468787,0.81567,2451.1,2451.0,2.02555912]
[1751379468982,0.81571,2451.0,2450.9,0.6723]
[1751379469189,0.81569,2451.1,2450.9,1.88197861]
[1751379469388,0.81569,2451.1,2451.0,0.81567]
[1751379469887,0.81571,2451.0,2450.9,2.69768861]
[1751379470388,2.03903,2451.3,2450.9,1.88197861]
[1751379470596,0.8157,2451.1,2451.0,0.81568]
[1751379471694,0.81571,2451.0,2450.9,2.69769861]
[1751379471895,0.81571,2451.0,2450.9,1.88197861]
[1751379472492,0.81571,2451.0,2450.9,0.6723]
[1751379472889,0.81571,2451.0,2450.9,1.48804]
[1751379473997,0.8157,2451.1,2451.0,0.81567]
[1751379474691,0.81571,2451.0,2450.9,0.6723]
[1751379475090,0.81571,2451.0,2450.9,1.48804]
[1751379476195,0.81571,2451.0,2450.9,2.69771861]
[1751379476999,0.81571,2451.0,2450.9,1.88197861]
[1751379477198,0.81571,2451.0,2450.9,2.69771861]
[1751379477401,0.8157,2451.1,2451.0,0.81567]
[1751379478100,1.52137,2451.2,2451.1,0.81567]
[1751379479398,0.81567,2451.1,2451.0,2.02535861]
[1751379479807,0.81567,2451.1,2451.0,0.81568]
[1751379480105,0.81567,2451.1,2450.9,3.31937861]
[1751379480106,0.81571,2451.0,2450.9,1.88197861]
[1751379480398,0.81571,2451.0,2450.9,2.69949506]
[1751379480595,0.8157,2451.1,2451.0,0.81567]
[1751379480799,1.52137,2451.2,2451.1,0.81567]
[1751379481101,0.81567,2451.1,2451.0,2.02712506]
[1751379481697,0.7057,2451.2,2451.0,2.02712506]
[1751379482000,0.8156,2451.4,2451.3,0.81557]
[1751379483099,0.81561,2451.4,2451.3,0.81558]
[1751379483405,0.81561,2451.3,2451.2,2.02707506]
[1751379484204,0.6978,2451.6,2451.2,2.03909]
[1751379484502,0.6978,2451.6,2451.3,1.21361928]
[1751379484503,0.81557,2451.4,2451.3,1.21361928]
[1751379484693,6.54250344,2451.4,2451.3,1.21361928]
[1751379484897,0.81561,2451.3,2451.2,1.21361928]
[1751379485902,2.22091,2451.3,2451.2,1.21361928]
[1751379486104,0.81564,2451.2,2451.1,1.21361928]
[1751379486300,0.81567,2451.1,2451.0,1.60068467]
[1751379487106,0.81571,2451.0,2450.9,1.60068467]
[1751379487306,0.81574,2450.9,2450.8,2.41643467]
[1751379487502,0.81574,2450.9,2450.8,3.23686454]
[1751379488004,0.81571,2451.1,2451.0,0.81568]
[1751379488197,0.81558,2451.5,2451.4,0.81554]
[1751379488502,0.6978,2451.6,2451.1,2.03914]
[1751379488710,0.81561,2451.3,2451.2,2.85281]
[1751379489006,0.8156,2451.4,2451.3,0.81557]